fUSD/lending_fUSD_20250215
["ID","MTS","AMOUNT","RATE_DAILY","PERIOD"]
[353169931,1739622643581,-500.0,0.00011117,2]
[353169932,1739622643590,-500.0,0.00011117,2]
[353169933,1739622643600,-500.0,0.00011117,2]
[353169934,1739622643610,-500.0,0.00011118,2]
[353169935,1739622643619,-218.94134311,0.00011118,2]
[353169936,1739622643628,-177.38883594,0.00011118,2]
[353169937,1739622643638,-501.27658727,0.00011118,2]
[353169938,1739622643647,-500.0,0.00011118,2]
[353169939,1739622643656,-498.42913354,0.00011118,2]
[353169940,1739622643665,-212.73284906,0.00011118,2]
[353169941,1739622643676,-500.0,0.00011118,2]
[353169942,1739622643685,-500.0,0.00011118,2]
[353169943,1739622643694,-500.0,0.00011118,2]
[353169944,1739622643704,-500.0,0.00011118,2]
[353169945,1739622643714,-500.0,0.00011118,2]
[353169946,1739622643725,-500.0,0.00011118,2]
[353169947,1739622643738,-500.0,0.00011118,2]
[353169948,1739622643748,-500.0,0.00011118,2]
[353169949,1739622643764,-500.0,0.00011118,2]
[353169950,1739622643773,-500.0,0.00011118,2]
[353169951,1739622643784,-500.0,0.00011118,2]
[353169952,1739622643794,-500.0,0.00011118,2]
[353169953,1739622643803,-295.00741837,0.00011118,2]
[353169954,1739622643814,-510.55814512,0.00011118,2]
[353169955,1739622643822,-500.0,0.00011118,2]
[353169956,1739622643832,-501.99,0.00011118,2]
[353169957,1739622643841,-500.0,0.00011118,2]
[353169958,1739622643850,-220.91073491,0.00011118,2]
[353169959,1739622643859,-500.0,0.00011118,2]
[353169960,1739622643869,-501.85674177,0.00011118,2]
[353169961,1739622643878,-490.72,0.00011119,2]
[353169962,1739622643887,-4000.0,0.0001117,2]
[353169963,1739622643896,-500.0,0.00011198,2]
[353169964,1739622643905,-789.93,0.00011198,2]
[353169965,1739622643914,-753.21,0.00011198,2]
[353169966,1739622643925,-500.0,0.00011198,2]
[353169967,1739622643935,-500.0,0.00011198,2]
[353169968,1739622643944,-869.8,0.00011198,2]
[353169969,1739622643953,-500.0,0.00011198,2]
[353169970,1739622643962,-500.0,0.00011198,2]
[353169971,1739622643971,-884.0,0.00011198,2]
[353169972,1739622643979,-1010.64,0.00011198,2]
[353169973,1739622643989,-385.26673079,0.00011198,2]
[353169974,1739622643998,-697.88,0.00011198,2]
[353169975,1739622644007,-500.0,0.00011198,2]
[353169976,1739622644015,-598.74,0.00011198,2]
[353169977,1739622644025,-1091.44,0.00011198,2]
[353169978,1739622644033,-500.0,0.00011198,2]
[353169979,1739622644042,-500.0,0.00011198,2]
[353169980,1739622644051,-589.68,0.00011198,2]
[353169981,1739622644060,-500.0,0.00011198,2]
[353169982,1739622644068,-723.51,0.00011198,2]
[353169983,1739622644077,-500.0,0.00011198,2]
[353169984,1739622644087,-1170.49,0.00011198,2]
[353169985,1739622644095,-500.0,0.00011198,2]
[353169986,1739622644105,-500.0,0.00011198,2]
[353169987,1739622644115,-847.84,0.00011198,2]
[353169988,1739622644126,-500.0,0.00011198,2]
[353169989,1739622644137,-500.0,0.00011198,2]
[353169990,1739622644147,-500.0,0.00011198,2]
[353169991,1739622644156,-500.0,0.00011198,2]
[353169992,1739622644166,-500.0,0.00011198,2]
[353169993,1739622644175,-500.0,0.00011198,2]
[353169994,1739622644184,-556.78242738,0.00011198,2]
[353169995,1739622644193,-939.8,0.00011198,2]
[353169996,1739622644202,-530.83,0.00011198,2]
[353169997,1739622644211,-500.0,0.00011198,2]
[353169998,1739622644220,-500.0,0.00011198,2]
[353169999,1739622644229,-500.0,0.00011198,2]
[353170000,1739622644238,-512.23,0.00011198,2]
[353170001,1739622644247,-500.0,0.00011198,2]
[353170002,1739622644257,-505.37,0.00011198,2]
[353170003,1739622644266,-615.53,0.00011198,2]
[353170004,1739622644275,-500.0,0.00011198,2]
[353170005,1739622644285,-501.3,0.00011198,2]
[353170006,1739622644294,-500.0,0.00011199,2]
[353170007,1739622644303,-500.0,0.00011199,2]
[353170008,1739622644313,-500.0,0.00011199,2]
[353170009,1739622644322,-500.0,0.00011199,2]
[353170010,1739622644331,-500.0,0.00011199,2]
[353170011,1739622644341,-399.71,0.00011199,2]
[353170012,1739622644358,-500.0,0.00011199,2]
[353170013,1739622644367,-500.0,0.00011199,2]
[353170014,1739622644376,-500.0,0.00011199,2]
[353170015,1739622644386,-500.0,0.00011199,2]
[353170016,1739622644398,-500.0,0.00011199,2]
[353170017,1739622644407,-500.0,0.00011199,2]
[353170018,1739622644417,-500.0,0.00011199,2]
[353170019,1739622644426,-500.0,0.00011199,2]
[353170020,1739622644436,-500.0,0.00011199,2]
[353170021,1739622644446,-500.0,0.00011199,2]
[353170022,1739622644455,-424.44,0.00011199,2]
[353170023,1739622644464,-500.0,0.00011199,2]
[353170024,1739622644473,-500.0,0.00011199,2]
[353170025,1739622644483,-500.0,0.00011199,2]
[353170026,1739622644492,-500.0,0.00011199,2]
[353170027,1739622644502,-500.0,0.00011199,2]
[353170028,1739622644512,-500.0,0.00011199,2]
[353170029,1739622644522,-500.0,0.00011199,2]
[353170030,1739622644531,-500.0,0.00011199,2]
[353170031,1739622644541,-500.0,0.00011199,2]
[353170032,1739622644550,-500.0,0.00011199,2]
[353170033,1739622644559,-500.0,0.00011199,2]
[353170034,1739622644568,-500.0,0.00011199,2]
[353170035,1739622644578,-500.0,0.00011199,2]
[353170036,1739622644592,-500.0,0.00011199,2]
[353170037,1739622644601,-500.0,0.00011199,2]
[353170038,1739622644611,-500.0,0.00011199,2]
[353170039,1739622644620,-339.6,0.00011199,2]
[353170040,1739622644629,-500.0,0.00011199,2]
[353170041,1739622644638,-500.0,0.00011199,2]
[353170042,1739622644647,-500.0,0.00011199,2]
[353170043,1739622644657,-500.0,0.00011199,2]
[353170044,1739622644666,-500.0,0.00011199,2]
[353170045,1739622644676,-540.23,0.00011199,2]
[353170046,1739622644685,-534.15,0.00011199,2]
[353170047,1739622644695,-595.64,0.00011199,2]
[353170048,1739622644705,-500.0,0.00011199,2]
[353170049,1739622644714,-500.0,0.00011199,2]
[353170050,1739622644724,-500.0,0.00011199,2]
[353170051,1739622644734,-456.44,0.00011199,2]
[353170052,1739622644744,-500.0,0.00011199,2]
[353170053,1739622644753,-500.0,0.00011199,2]
[353170054,1739622644763,-500.0,0.00011199,2]
[353170055,1739622644772,-500.0,0.00011199,2]
[353170056,1739622644782,-461.53,0.00011199,2]
[353170057,1739622644791,-500.0,0.00011199,2]
[353170058,1739622644800,-500.0,0.00011199,2]
[353170059,1739622644809,-500.0,0.00011199,2]
[353170060,1739622644819,-500.0,0.00011199,2]
[353170061,1739622644829,-500.0,0.00011199,2]
[353170062,1739622644839,-500.0,0.00011199,2]
[353170063,1739622644850,-500.0,0.00011199,2]
[353170064,1739622644858,-466.83,0.00011199,2]
[353170065,1739622644867,-500.0,0.00011199,2]
[353170066,1739622644877,-500.0,0.00011199,2]
[353170067,1739622644886,-500.0,0.00011199,2]
[353170068,1739622644895,-1833.25,0.00011199,2]
[353170069,1739622644905,-500.0,0.00011199,2]
[353170070,1739622644914,-500.0,0.00011199,2]
[353170071,1739622644923,-500.0,0.00011199,2]
[353170072,1739622644933,-188.43,0.00011199,2]
[353170073,1739622644943,-293.41,0.00011199,2]
[353170074,1739622644953,-500.0,0.00011199,2]
[353170075,1739622644962,-156.346114,0.00011199,2]
[353170076,1739622644971,-500.0,0.00011199,2]
[353170077,1739622644981,-500.0,0.00011199,2]
[353170078,1739622644990,-500.0,0.00011199,2]
[353170079,1739622644999,-500.0,0.00011199,2]
[353170080,1739622645009,-500.0,0.00011199,2]
[353170081,1739622645018,-500.0,0.00011199,2]
[353170082,1739622645027,-500.0,0.00011199,2]
[353170083,1739622645036,-500.0,0.00011199,2]
[353170084,1739622645046,-500.0,0.00011199,2]
[353170085,1739622645055,-500.0,0.00011199,2]
[353170086,1739622645064,-500.0,0.00011199,2]
[353170087,1739622645073,-500.0,0.00011199,2]
[353170088,1739622645082,-500.0,0.00011199,2]
[353170089,1739622645091,-500.0,0.00011199,2]
[353170090,1739622645100,-154.788116,0.00011199,2]
[353170091,1739622645109,-500.0,0.00011199,2]
[353170092,1739622645118,-610.1,0.00011199,2]
[353170093,1739622645127,-500.0,0.00011199,2]
[353170094,1739622645136,-500.0,0.00011199,2]
[353170095,1739622645145,-500.0,0.00011199,2]
[353170096,1739622645154,-500.0,0.00011199,2]
[353170097,1739622645163,-500.0,0.00011199,2]
[353170098,1739622645172,-500.0,0.00011199,2]
[353170099,1739622645181,-500.0,0.00011199,2]
[353170100,1739622645190,-500.0,0.00011199,2]
[353170101,1739622645199,-500.0,0.00011199,2]
[353170102,1739622645208,-500.0,0.00011199,2]
[353170103,1739622645217,-497.01,0.00011199,2]
[353170104,1739622645226,-500.0,0.00011199,2]
[353170105,1739622645236,-500.0,0.00011199,2]
[353170106,1739622645245,-500.0,0.00011199,2]
[353170107,1739622645254,-167.72,0.00011199,2]
[353170108,1739622645264,-500.0,0.00011199,2]
[353170109,1739622645273,-500.0,0.00011199,2]
[353170110,1739622645283,-500.0,0.00011199,2]
[353170111,1739622645292,-500.0,0.00011199,2]
[353170112,1739622645301,-500.0,0.00011199,2]
[353170113,1739622645310,-500.0,0.00011199,2]
[353170114,1739622645319,-500.0,0.00011199,2]
[353170115,1739622645328,-500.0,0.00011199,2]
[353170116,1739622645337,-500.0,0.00011199,2]
[353170117,1739622645349,-500.0,0.00011199,2]
[353170118,1739622645358,-500.0,0.00011199,2]
[353170119,1739622645367,-500.0,0.00011199,2]
[353170120,1739622645377,-434.38,0.00011199,2]
[353170121,1739622645386,-500.0,0.00011199,2]
[353170122,1739622645397,-500.0,0.00011199,2]
[353170123,1739622645407,-500.0,0.00011199,2]
[353170124,1739622645416,-500.0,0.00011199,2]
[353170125,1739622645428,-489.02,0.00011199,2]
[353170126,1739622645437,-500.0,0.00011199,2]
[353170127,1739622645447,-500.0,0.00011199,2]
[353170128,1739622645456,-500.0,0.00011199,2]
[353170129,1739622645465,-500.0,0.00011199,2]
[353170130,1739622645474,-500.0,0.00011199,2]
[353170131,1739622645485,-500.0,0.00011199,2]
[353170132,1739622645494,-500.0,0.00011199,2]
[353170133,1739622645504,-500.0,0.00011199,2]
[353170134,1739622645514,-500.0,0.00011199,2]
[353170135,1739622645523,-500.0,0.00011199,2]
[353170136,1739622645532,-634.42,0.00011199,2]
[353170137,1739622645543,-500.0,0.00011199,2]
[353170138,1739622645553,-657.8,0.00011199,2]
[353170139,1739622645562,-500.0,0.00011199,2]
[353170140,1739622645571,-532.35,0.00011199,2]
[353170141,1739622645580,-534.0,0.00011199,2]
[353170142,1739622645590,-581.45,0.00011199,2]
[353170143,1739622645599,-568.14,0.00011199,2]
[353170144,1739622645608,-500.0,0.00011199,2]
[353170145,1739622645618,-771.84,0.00011199,2]
[353170146,1739622645627,-500.0,0.00011199,2]
[353170147,1739622645830,-1302.56,0.00011199,2]
[353170148,1739622645840,-500.0,0.00011199,2]
[353170149,1739622645849,-500.0,0.00011199,2]
[353170150,1739622645859,-704.31,0.00011199,2]
[353170151,1739622645868,-500.0,0.00011199,2]
[353170152,1739622645880,-500.0,0.00011199,2]
[353170153,1739622645889,-500.0,0.00011199,2]
[353170154,1739622645898,-500.0,0.00011199,2]
[353170155,1739622645907,-760.08,0.00011199,2]
[353170156,1739622645916,-500.0,0.00011199,2]
[353170158,1739622645926,-500.0,0.00011199,2]
[353170160,1739622645935,-500.0,0.00011199,2]
[353170162,1739622645944,-910.57,0.00011199,2]
[353170164,1739622645954,-500.0,0.00011199,2]
[353170166,1739622645963,-500.0,0.00011199,2]
[353170168,1739622645972,-500.0,0.00011199,2]
[353170170,1739622645981,-544.17,0.00011199,2]
[353170171,1739622645991,-500.0,0.00011199,2]
[353170172,1739622646000,-2315.08,0.00011199,2]
[353170173,1739622646009,-500.0,0.00011199,2]
[353170174,1739622646020,-797.59,0.00011199,2]
[353170175,1739622646030,-500.0,0.00011199,2]
[353170176,1739622646039,-500.0,0.00011199,2]
[353170177,1739622646049,-1266.29,0.00011199,2]
[353170178,1739622646059,-607.05,0.00011199,2]
[353170179,1739622646070,-500.0,0.00011199,2]
[353170180,1739622646079,-1841.56,0.00011199,2]
[353170181,1739622646089,-500.0,0.00011199,2]
[353170182,1739622646098,-500.0,0.00011199,2]
[353170183,1739622646107,-500.0,0.00011199,2]
[353170184,1739622646116,-508.47,0.00011199,2]
[353170185,1739622646126,-500.0,0.00011199,2]
[353170186,1739622646135,-500.0,0.00011199,2]
[353170187,1739622646144,-647.7,0.00011199,2]
[353170188,1739622646153,-500.0,0.00011199,2]
[353170189,1739622646163,-785.57,0.00011199,2]
[353170190,1739622646172,-500.0,0.00011199,2]
[353170191,1739622646182,-500.0,0.00011199,2]
[353170192,1739622646191,-889.75,0.00011199,2]
[353170193,1739622646200,-500.0,0.00011199,2]
[353170194,1739622646210,-500.0,0.00011199,2]
[353170195,1739622646218,-500.0,0.00011199,2]
[353170196,1739622646227,-500.0,0.00011199,2]
[353170197,1739622646237,-607.34607877,0.00011199,2]
[353170198,1739622646247,-500.0,0.00011199,2]
[353170199,1739622646258,-500.0,0.00011199,2]
[353170200,1739622646268,-1033.08,0.00011199,2]
[353170201,1739622646278,-500.0,0.00011199,2]
[353170202,1739622646288,-1201.24,0.00011199,2]
[353170203,1739622646298,-500.0,0.00011199,2]
[353170204,1739622646307,-500.0,0.00011199,2]
[353170205,1739622646319,-618.91,0.00011199,2]
[353170206,1739622646328,-500.0,0.00011199,2]
[353170207,1739622646338,-553.12,0.00011199,2]
[353170208,1739622646349,-500.0,0.00011199,2]
[353170209,1739622646360,-500.0,0.00011199,2]
[353170210,1739622646370,-500.0,0.00011199,2]
[353170211,1739622646380,-500.0,0.00011199,2]
[353170212,1739622646391,-500.0,0.00011199,2]
[353170213,1739622646400,-500.0,0.00011199,2]
[353170214,1739622646409,-501.85053561,0.00011199,2]
[353170215,1739622646419,-500.0,0.00011199,2]
[353170216,1739622646428,-500.0,0.00011199,2]
[353170217,1739622646438,-500.0,0.00011199,2]
[353170218,1739622646448,-500.0,0.00011199,2]
[353170219,1739622646457,-500.0,0.00011199,2]
[353170220,1739622646466,-500.0,0.00011199,2]
[353170221,1739622646476,-500.0,0.00011199,2]
[353170222,1739622646485,-761.01,0.00011199,2]
[353170223,1739622646493,-500.0,0.00011199,2]
[353170224,1739622646502,-531.06,0.00011199,2]
[353170225,1739622646511,-500.0,0.00011199,2]
[353170226,1739622646521,-500.0,0.00011199,2]
[353170227,1739622646530,-500.0,0.00011199,2]
[353170228,1739622646539,-978.15,0.00011199,2]
[353170229,1739622646548,-500.0,0.00011199,2]
[353170230,1739622646557,-500.0,0.00011199,2]
[353170231,1739622646567,-500.0,0.00011199,2]
[353170232,1739622646576,-718.8,0.00011199,2]
[353170233,1739622646585,-500.0,0.00011199,2]
[353170234,1739622646594,-500.0,0.00011199,2]
[353170235,1739622646603,-763.17,0.00011199,2]
[353170236,1739622646612,-500.0,0.00011199,2]
[353170237,1739622646621,-500.0,0.00011199,2]
[353170238,1739622646630,-500.0,0.00011199,2]
[353170239,1739622646640,-1207.4,0.00011199,2]
[353170240,1739622646650,-500.0,0.00011199,2]
[353170241,1739622646659,-500.0,0.00011199,2]
[353170242,1739622646668,-506.2264142,0.00011199,2]
[353170243,1739622646677,-601.17,0.00011199,2]
[353170244,1739622646687,-503.71701546,0.00011199,2]
[353170245,1739622646696,-500.0,0.00011199,2]
[353170246,1739622646706,-500.0,0.00011199,2]
[353170247,1739622646715,-500.0,0.00011199,2]
[353170248,1739622646724,-3487.11,0.00011199,2]
[353170249,1739622646734,-500.0,0.00011199,2]
[353170250,1739622646743,-500.0,0.00011199,2]
[353170251,1739622646753,-834.46,0.00011199,2]
[353170252,1739622646762,-501.90085122,0.00011199,2]
[353170253,1739622646772,-501.82333967,0.00011199,2]
[353170254,1739622646782,-514.39,0.000112,2]
[353170255,1739622646792,-171.48,0.000112,2]
[353170256,1739622646802,-500.0,0.000112,2]
[353170257,1739622646811,-500.0,0.000112,2]
[353170258,1739622646819,-258.4992158,0.0001125,2]
[353170259,1739622646829,-26986.4339306,0.00011267,2]
[353170260,1739622646839,-500.0,0.0001128,2]
[353170261,1739622646849,-789.93,0.0001128,2]
[353170262,1739622646860,-753.21,0.0001128,2]
[353170263,1739622646869,-500.0,0.0001128,2]
[353170264,1739622646879,-500.0,0.0001128,2]
[353170265,1739622646889,-869.8,0.0001128,2]
[353170266,1739622646899,-500.0,0.0001128,2]
[353170267,1739622646909,-500.0,0.0001128,2]
[353170268,1739622646919,-884.0,0.0001128,2]
[353170269,1739622646928,-1010.64,0.0001128,2]
[353170270,1739622646939,-697.88,0.0001128,2]
[353170271,1739622646949,-500.0,0.0001128,2]
[353170272,1739622646959,-598.74,0.0001128,2]
[353170273,1739622646969,-1091.44,0.0001128,2]
[353170274,1739622646985,-500.0,0.0001128,2]
[353170275,1739622647038,-589.68,0.0001128,2]
[353170276,1739622647109,-500.0,0.0001128,2]
[353170277,1739622647207,-723.51,0.0001128,2]
[353170278,1739622647323,-500.0,0.0001128,2]
[353170279,1739622647432,-1170.49,0.0001128,2]
[353170280,1739622647549,-500.0,0.0001128,2]
[353170281,1739622647655,-500.0,0.0001128,2]
[353170282,1739622647780,-847.84,0.0001128,2]
[353170283,1739622647899,-169.14,0.0001128,2]
[353170284,1739622647992,-500.0,0.0001128,2]
[353170285,1739622648117,-223.76,0.0001128,2]
[353170286,1739622648181,-188.72,0.0001128,2]
[353170287,1739622648235,-500.0,0.0001128,2]
[353170288,1739622648246,-939.8,0.0001128,2]
[353170289,1739622648256,-530.83,0.0001128,2]
[353170290,1739622648266,-500.0,0.0001128,2]
[353170291,1739622648276,-500.0,0.0001128,2]
[353170292,1739622648286,-500.0,0.0001128,2]
[353170293,1739622648295,-500.0,0.0001128,2]
[353170294,1739622648305,-501.3,0.0001128,2]
[353170295,1739622648314,-488.01,0.00011281,2]
[353170296,1739622648323,-500.0,0.00011281,2]
[353170297,1739622648333,-500.0,0.00011281,2]
[353170298,1739622648344,-500.0,0.00011281,2]
[353170299,1739622648357,-500.0,0.00011281,2]
[353170300,1739622648367,-500.0,0.00011281,2]
[353170301,1739622648376,-500.0,0.00011281,2]
[353170302,1739622648386,-500.0,0.00011281,2]
[353170303,1739622648396,-500.0,0.00011281,2]
[353170304,1739622648406,-500.0,0.00011281,2]
[353170305,1739622648415,-500.0,0.00011281,2]
[353170306,1739622648425,-500.0,0.00011281,2]
[353170307,1739622648435,-500.0,0.00011281,2]
[353170308,1739622648446,-500.0,0.00011281,2]
[353170309,1739622648456,-404.22,0.00011281,2]
[353170310,1739622648465,-500.0,0.00011281,2]
[353170311,1739622648475,-500.0,0.00011281,2]
[353170312,1739622648485,-500.0,0.00011281,2]
[353170313,1739622648495,-500.0,0.00011281,2]
[353170314,1739622648505,-500.0,0.00011281,2]
[353170315,1739622648515,-500.0,0.00011281,2]
[353170316,1739622648525,-500.0,0.00011281,2]
[353170317,1739622648535,-332.11,0.00011281,2]
[353170318,1739622648544,-500.0,0.00011281,2]
[353170319,1739622648554,-500.0,0.00011281,2]
[353170320,1739622648564,-500.0,0.00011281,2]
[353170321,1739622648574,-500.0,0.00011281,2]
[353170322,1739622648583,-500.0,0.00011281,2]
[353170323,1739622648593,-574.22,0.00011281,2]
[353170324,1739622648603,-500.0,0.00011281,2]
[353170325,1739622648613,-500.0,0.00011281,2]
[353170326,1739622648623,-403.64,0.00011281,2]
[353170327,1739622648633,-500.0,0.00011281,2]
[353170328,1739622648643,-500.0,0.00011281,2]
[353170329,1739622648652,-500.0,0.00011281,2]
[353170330,1739622648662,-355.66,0.00011281,2]
[353170331,1739622648672,-183.03367028,0.00011281,2]
[353170332,1739622648682,-500.0,0.00011281,2]
[353170333,1739622648691,-500.0,0.00011281,2]
[353170334,1739622648701,-500.0,0.00011281,2]
[353170335,1739622648710,-500.0,0.00011281,2]
[353170336,1739622648719,-500.0,0.00011281,2]
[353170337,1739622648728,-348.0,0.00011281,2]
[353170338,1739622648738,-500.0,0.00011281,2]
[353170339,1739622648747,-500.0,0.00011281,2]
[353170340,1739622648756,-500.0,0.00011281,2]
[353170341,1739622648766,-1833.25,0.00011281,2]
[353170342,1739622648775,-500.0,0.00011281,2]
[353170343,1739622648784,-500.0,0.00011281,2]
[353170344,1739622648793,-571.22,0.00011281,2]
[353170345,1739622648802,-500.0,0.00011281,2]
[353170346,1739622648812,-500.0,0.00011281,2]
[353170347,1739622648821,-500.0,0.00011281,2]
[353170348,1739622648831,-500.0,0.00011281,2]
[353170349,1739622648841,-500.0,0.00011281,2]
[353170350,1739622648850,-500.0,0.00011281,2]
[353170351,1739622648860,-500.0,0.00011281,2]
[353170352,1739622648870,-255.06,0.00011281,2]
[353170353,1739622648880,-500.0,0.00011281,2]
[353170354,1739622648890,-423.81,0.00011281,2]
[353170355,1739622648900,-593.88,0.00011281,2]
[353170356,1739622648910,-500.0,0.00011281,2]
[353170357,1739622648920,-500.0,0.00011281,2]
[353170358,1739622648930,-500.0,0.00011281,2]
[353170359,1739622648940,-154.788116,0.00011281,2]
[353170360,1739622648950,-500.0,0.00011281,2]
[353170361,1739622648961,-500.0,0.00011281,2]
[353170362,1739622648972,-500.0,0.00011281,2]
[353170363,1739622648981,-500.0,0.00011281,2]
[353170364,1739622648991,-500.0,0.00011281,2]
[353170365,1739622649001,-500.0,0.00011281,2]
[353170366,1739622649012,-500.0,0.00011281,2]
[353170367,1739622649022,-500.0,0.00011281,2]
[353170368,1739622649032,-500.0,0.00011281,2]
[353170369,1739622649043,-500.0,0.00011281,2]
[353170370,1739622649052,-213.56,0.00011281,2]
[353170371,1739622649062,-500.0,0.00011281,2]
[353170372,1739622649072,-500.0,0.00011281,2]
[353170373,1739622649081,-500.0,0.00011281,2]
[353170374,1739622649091,-500.0,0.00011281,2]
[353170375,1739622649100,-562.83,0.00011281,2]
[353170376,1739622649110,-500.0,0.00011281,2]
[353170377,1739622649119,-153.42,0.00011281,2]
[353170378,1739622649129,-500.0,0.00011281,2]
[353170379,1739622649139,-500.0,0.00011281,2]
[353170380,1739622649149,-500.0,0.00011281,2]
[353170381,1739622649159,-500.0,0.00011281,2]
[353170382,1739622649168,-256.82,0.00011281,2]
[353170383,1739622649178,-500.0,0.00011281,2]
[353170384,1739622649188,-500.0,0.00011281,2]
[353170385,1739622649198,-500.0,0.00011281,2]
[353170386,1739622649208,-500.0,0.00011281,2]
[353170387,1739622649218,-500.0,0.00011281,2]
[353170388,1739622649227,-500.0,0.00011281,2]
[353170389,1739622649238,-500.0,0.00011281,2]
[353170390,1739622649248,-500.0,0.00011281,2]
[353170391,1739622649258,-389.54,0.00011281,2]
[353170392,1739622649268,-500.0,0.00011281,2]
[353170393,1739622649278,-500.0,0.00011281,2]
[353170394,1739622649288,-500.0,0.00011281,2]
[353170395,1739622649299,-657.8,0.00011281,2]
[353170396,1739622649310,-500.0,0.00011281,2]
[353170397,1739622649320,-532.35,0.00011281,2]
[353170398,1739622649331,-534.0,0.00011281,2]
[353170399,1739622649342,-581.45,0.00011281,2]
[353170400,1739622649361,-500.0,0.00011281,2]
[353170401,1739622649375,-771.84,0.00011281,2]
[353170402,1739622649387,-500.0,0.00011281,2]
[353170403,1739622649398,-1302.56,0.00011281,2]
[353170404,1739622649408,-500.0,0.00011281,2]
[353170405,1739622649419,-500.0,0.00011281,2]
[353170406,1739622649431,-704.31,0.00011281,2]
[353170407,1739622649443,-500.0,0.00011281,2]
[353170408,1739622649454,-485.81743704,0.00011281,2]
[353170409,1739622649708,-14.18256296,0.00011281,2]
[353170410,1739622649719,-760.08,0.00011281,2]
[353170411,1739622649729,-500.0,0.00011281,2]
[353170412,1739622649740,-500.0,0.00011281,2]
[353170413,1739622649750,-500.0,0.00011281,2]
[353170414,1739622649760,-910.57,0.00011281,2]
[353170415,1739622649770,-500.0,0.00011281,2]
[353170416,1739622649780,-174.17,0.00011281,2]
[353170417,1739622649791,-500.0,0.00011281,2]
[353170418,1739622649800,-544.17,0.00011281,2]
[353170419,1739622649810,-500.0,0.00011281,2]
[353170420,1739622649820,-2315.08,0.00011281,2]
[353170421,1739622649830,-500.0,0.00011281,2]
[353170422,1739622649840,-797.59,0.00011281,2]
[353170423,1739622649849,-500.0,0.00011281,2]
[353170424,1739622649859,-262.14,0.00011281,2]
[353170425,1739622649869,-1266.29,0.00011281,2]
[353170426,1739622649879,-607.05,0.00011281,2]
[353170427,1739622649888,-455.21,0.00011281,2]
[353170428,1739622649898,-1841.56,0.00011281,2]
[353170429,1739622649907,-500.0,0.00011281,2]
[353170430,1739622649917,-500.0,0.00011281,2]
[353170431,1739622649927,-400.66,0.00011281,2]
[353170432,1739622649936,-785.57,0.00011281,2]
[353170433,1739622649946,-500.0,0.00011281,2]
[353170434,1739622649955,-378.1,0.00011281,2]
[353170435,1739622649965,-889.75,0.00011281,2]
[353170436,1739622649975,-500.0,0.00011281,2]
[353170437,1739622649986,-500.0,0.00011281,2]